bitfinex/quotes_ETHUSD_20250511
["timestamp","ask_amount","ask_price","bid_price","bid_amount"]
[1746938502150,0.09428824,2536.3,2535.8,2.668]
[1746938503363,4.28376323,2536.3,2535.6,0.812]
[1746938503562,3.94305115,2536.2,2535.6,0.812]
[1746938503749,0.08574905,2536.1,2535.6,0.812]
[1746938505094,3.94276767,2536.3,2535.6,0.812]
[1746938505280,0.08552848,2536.0,2535.6,0.812]
[1746938505593,0.08530788,2535.9,2535.6,1.16394349]
[1746938506186,3.94276767,2536.3,2535.6,0.812]
[1746938506484,0.08508727,2535.8,2535.6,0.812]
[1746938506695,3.94276767,2536.3,2535.6,0.812]
[1746938506990,0.08596961,2536.2,2535.6,0.812]
[1746938507588,0.08596961,2536.2,2535.7,0.03943491]
[1746938507747,0.08596961,2536.2,2535.7,0.3913784]
[1746938507954,3.94253964,2536.5,2535.7,0.3913784]
[1746938508195,0.08615063,2536.4,2535.7,0.3913784]
[1746938508594,4.02878428,2536.4,2535.7,0.3913784]
[1746938508790,0.08615063,2536.4,2535.8,0.8056]
[1746938508998,3.94279657,2536.3,2535.8,0.8056]
[1746938509198,3.9425732,2536.5,2535.8,0.8056]
[1746938509494,0.08570957,2536.2,2535.8,1.18815435]
[1746938509674,3.9425732,2536.5,2535.8,1.18815435]
[1746938509997,3.94275777,2536.3,2535.8,0.8056]
[1746938510162,3.94244385,2536.5,2535.8,0.8056]
[1746938510163,3.94264587,2536.4,2535.8,0.8056]
[1746938510533,0.08612897,2536.3,2535.8,0.8056]
[1746938511295,4.0288821,2536.3,2535.8,0.8056]
[1746938511496,0.08612897,2536.3,2535.8,0.8056]
[1746938513106,0.08612897,2536.3,2535.8,1.15690323]
[1746938513292,3.94244037,2536.5,2535.8,1.15690323]
[1746938513602,4.02891659,2536.4,2535.8,1.15690323]
[1746938514694,0.08630361,2536.4,2535.8,1.15690323]
[1746938517099,0.08630361,2536.4,2535.8,1.1963355]
[1746938517306,6.83462065,2536.9,2535.9,0.38633355]
[1746938517597,3.94225418,2536.7,2535.9,0.38633355]
[1746938517915,0.30695905,2536.6,2535.9,0.38633355]
[1746938518492,4.24925391,2536.6,2535.8,0.8056]
[1746938518687,0.22016856,2536.5,2535.8,0.8056]
[1746938519026,4.02913177,2536.4,2535.8,0.8056]
[1746938519510,0.22016856,2536.3,2535.8,0.8056]
[1746938519711,0.08600021,2536.2,2535.8,0.8056]
[1746938519895,0.22016856,2536.3,2535.8,0.8056]
[1746938520081,0.30616877,2536.2,2535.8,0.8056]
[1746938520278,0.30616877,2536.2,2535.8,1.15286]
[1746938520497,0.30616877,2536.2,2535.8,0.8056]
[1746938520814,0.22016856,2536.1,2535.8,0.8056]
[1746938521211,0.08555907,2536.0,2535.8,0.8056]
[1746938521782,0.22016856,2535.9,2535.8,0.8056]
[1746938521982,0.30550704,2535.9,2535.8,0.8056]
[1746938522281,0.30550704,2535.9,2535.8,1.15286]
[1746938522589,0.30550704,2535.9,2535.8,0.8056]
[1746938526425,0.30550704,2535.9,2535.5,0.8246]
[1746938526729,0.22016856,2535.8,2535.5,0.8246]
[1746938526890,0.08453009,2535.7,2535.5,0.8246]
[1746938527090,0.22016856,2535.6,2535.5,0.8246]
[1746938527429,0.30447801,2535.6,2535.5,0.8246]
[1746938527917,0.22016856,2535.6,2535.5,0.8246]
[1746938529729,0.22016856,2535.6,2535.2,0.8246]
[1746938529927,0.22016856,2535.6,2535.2,1.70706]
[1746938530127,0.22016856,2535.6,2535.2,0.8246]
[1746938530879,0.22016856,2535.5,2535.2,0.86404082]
[1746938531198,0.22016856,2535.5,2535.2,0.8246]
[1746938531399,0.22016856,2536.1,2535.2,0.8246]
[1746938532293,4.16341273,2536.0,2535.2,0.8246]
[1746938532498,4.16341273,2536.0,2535.3,0.45337002]
[1746938532834,0.22016856,2535.9,2535.3,0.45337002]
[1746938533403,0.22016856,2535.9,2535.4,0.03943732]
[1746938533802,0.22016856,2535.8,2535.5,0.8246]
[1746938534722,0.22016856,2536.2,2535.6,0.03943501]
[1746938534927,0.22016856,2536.2,2535.7,0.8246]
[1746938535243,0.22016856,2536.2,2535.9,0.8246]
[1746938535421,0.22016856,2536.2,2535.8,0.39043472]
[1746938535422,0.22016856,2536.2,2536.1,0.8246]
[1746938535603,0.22016856,2536.8,2536.1,0.8246]
[1746938535803,0.22016856,2536.8,2536.2,0.8640238]
[1746938536112,0.22016856,2536.8,2536.2,3.5100238]
[1746938536315,0.22016856,2536.8,2536.3,0.35100238]
[1746938536515,7.1289332,2537.1,2536.3,0.35100238]
[1746938536516,0.22016856,2536.7,2536.3,0.35100238]
[1746938537061,0.22016856,2536.7,2536.4,0.7885]
[1746938537258,2.8927,2537.4,2536.4,0.7885]
[1746938537554,0.09678587,2537.3,2536.4,0.7885]
[1746938537836,0.09678587,2537.3,2536.4,1.43559262]
[1746938537997,3.94167312,2537.0,2536.4,0.7885]
[1746938538209,0.09572798,2536.9,2536.4,0.7885]
[1746938538438,3.94155935,2537.1,2536.4,0.7885]
[1746938538645,0.09689754,2536.8,2536.4,0.7885]
[1746938538837,4.16157279,2537.2,2536.4,0.7885]
[1746938539060,10.646,2537.6,2536.4,0.7885]
[1746938539061,0.09663299,2536.7,2536.6,0.7885]
[1746938539344,0.22016856,2537.1,2536.6,0.7885]
[1746938539646,0.09742656,2537.0,2536.6,0.7885]
[1746938540215,0.09742656,2537.0,2536.6,0.82791775]
[1746938540551,3.94121435,2537.3,2536.6,0.82791775]
[1746938540732,2.646,2537.6,2536.6,1.13589178]
[1746938540936,3.94160933,2537.1,2536.6,0.7885]
[1746938541248,0.22061645,2537.0,2536.6,0.7885]
[1746938541646,3.94192982,2536.9,2536.6,0.7885]
[1746938541950,3.94192982,2536.9,2536.4,3.4154]
[1746938542252,4.16231045,2537.0,2536.4,1.37544]
[1746938542429,0.22061645,2536.9,2536.4,1.37544]
[1746938542750,4.16244273,2536.9,2536.4,1.37544]
[1746938543049,3.94182628,2536.9,2536.4,1.37544]
[1746938543251,3.94170242,2537.0,2536.4,1.37544]
[1746938543446,4.18768528,2537.5,2536.4,1.37544]
[1746938543447,3.94184779,2536.9,2536.4,1.37544]
[1746938543748,0.2467,2536.9,2536.0,2.645]
[1746938544053,0.22053323,2536.8,2536.0,2.645]
[1746938544369,3.94237317,2536.6,2536.0,2.645]
[1746938544540,3.94246287,2536.5,2536.0,2.645]
[1746938544928,3.94246287,2536.5,2535.9,0.7694]
[1746938545131,3.94246287,2536.5,2535.9,1.68538343]
[1746938545538,3.94260598,2536.4,2535.9,0.7694]
[1746938545749,12.18859983,2536.9,2535.9,0.7694]
[1746938545951,3.94273817,2536.4,2535.9,0.7694]
[1746938546260,3.94249755,2536.5,2535.9,0.7694]
[1746938546459,0.22050743,2536.4,2535.9,0.7694]
[1746938547159,0.22050743,2536.3,2535.9,0.7694]
[1746938547359,0.22050743,2536.3,2535.9,1.11084]
[1746938547525,0.22050743,2536.3,2536.1,0.8265]
[1746938548063,3.94197556,2536.8,2536.1,0.8265]
[1746938548232,3.94217271,2536.7,2536.1,0.8265]
[1746938548565,0.22048445,2536.6,2536.1,0.8265]
[1746938549303,0.22048445,2536.5,2536.1,0.8265]
[1746938549423,3.9427079,2536.4,2535.8,0.8265]
[1746938549627,3.94278605,2536.3,2535.8,3.65725]
[1746938550461,3.94315512,2536.1,2535.6,0.8265]
[1746938550628,0.2467,2536.4,2535.6,0.8265]
[1746938550962,3.94301864,2536.2,2535.6,0.8265]
[1746938551554,0.22039832,2536.3,2535.6,0.8265]
[1746938551744,0.22039832,2536.1,2535.6,0.8265]
[1746938551953,0.22039832,2536.1,2535.7,0.34725]
[1746938552159,0.22039832,2536.1,2535.6,0.8265]
[1746938552536,3.94276633,2536.3,2535.6,0.8265]
[1746938552956,0.22045599,2536.2,2535.6,0.8265]
[1746938553159,4.1633656,2536.2,2535.6,0.8265]
[1746938553363,3.94306577,2536.1,2535.6,0.8265]
[1746938553686,3.94323914,2536.0,2535.6,1.70915]
[1746938553847,0.22045599,2536.2,2535.6,0.8265]
[1746938554056,3.94341403,2535.9,2535.4,0.7995]
[1746938554954,3.94319401,2536.1,2535.4,0.7995]
[1746938555138,3.94351527,2535.9,2535.4,0.7995]
[1746938556138,0.2467,2535.9,2535.4,0.7995]
[1746938556336,11.94365843,2535.8,2535.4,0.7995]
[1746938556539,8.0,2535.7,2535.4,0.7995]
[1746938556772,8.22035503,2535.7,2535.4,0.7995]
[1746938557351,8.0,2535.7,2535.4,0.7995]
[1746938557765,3.94398131,2535.6,2535.0,0.7995]
[1746938558074,3.94399976,2535.5,2535.1,0.34455]
[1746938558276,3.94399976,2535.5,2535.0,0.7995]
[1746938558588,3.94472784,2535.1,2534.8,0.03999999]
[1746938558741,3.94478442,2535.0,2534.8,0.03999999]
[1746938559773,0.2467,2535.4,2534.8,0.03999999]
[1746938560282,8.0,2535.2,2534.8,0.03999999]
[1746938560572,11.94457629,2535.2,2534.8,0.03999999]
[1746938560775,11.94457629,2535.2,2534.7,0.7995]
[1746938561475,3.94464946,2535.1,2534.7,0.7995]
[1746938562265,3.94504323,2534.9,2534.7,0.7995]
[1746938562473,3.94504323,2534.9,2534.3,0.7995]
[1746938562649,3.94504323,2534.9,2534.3,1.14395]
[1746938562849,8.0,2534.8,2534.3,1.14395]
[1746938563069,8.0,2534.8,2534.3,0.7995]
[1746938563381,3.9451244,2534.8,2534.3,0.7995]
[1746938563782,11.94514066,2534.8,2534.3,0.7995]
[1746938563955,8.2467,2535.1,2534.3,0.7995]
[1746938564274,3.94477317,2535.0,2534.3,0.7995]
[1746938564456,3.94497546,2534.9,2534.3,0.7995]
[1746938567704,3.94501149,2534.9,2534.3,0.7995]
[1746938568194,2.645,2535.2,2534.3,0.7995]
[1746938568487,8.0,2535.1,2534.5,0.7628]
[1746938568985,11.94472677,2535.1,2534.5,0.7628]
[1746938569965,3.94502955,2534.9,2534.5,0.7628]
[1746938570154,3.94525132,2534.7,2534.5,0.7628]
[1746938570393,3.94525132,2534.7,2534.0,0.7628]
[1746938570578,3.94542499,2534.6,2534.0,0.7628]
[1746938570894,3.94542499,2534.6,2534.0,1.10368]
[1746938571194,3.945457,2534.6,2534.0,0.7628]
[1746938571696,3.94560253,2534.5,2534.0,0.7628]
[1746938572095,3.94572016,2534.4,2534.0,0.7628]
[1746938573089,3.94541565,2534.6,2534.0,0.7628]
[1746938573300,3.94530091,2534.7,2534.0,0.7628]
[1746938573792,3.94600998,2534.3,2534.0,0.7628]
[1746938573996,3.94575237,2534.4,2534.0,0.7628]
[1746938574498,3.94589397,2534.3,2534.0,0.7628]
[1746938574702,3.94574585,2534.4,2534.0,0.7628]
[1746938575991,0.2467,2534.5,2534.0,0.7628]
[1746938576168,3.94582858,2534.4,2534.0,0.7628]
[1746938576605,3.94599856,2534.3,2534.0,0.7628]
[1746938577896,3.94576054,2534.4,2534.0,0.7628]
[1746938578086,4.19227806,2534.5,2534.0,0.7628]
[1746938579307,3.94557806,2534.5,2534.0,0.7628]
[1746938579815,3.94557806,2534.5,2533.4,2.646]
[1746938579816,8.0,2534.9,2534.2,0.7883]
[1746938580010,8.0,2535.0,2534.2,0.7883]
[1746938580214,0.21983766,2534.9,2534.2,1.13173]
[1746938580511,0.21983766,2534.9,2534.3,0.82775479]
[1746938580675,8.0,2535.0,2534.3,0.82775479]
[1746938581105,10.645,2535.1,2534.3,0.82775479]
[1746938581321,8.0,2535.0,2534.3,0.82775479]
[1746938582306,0.22010654,2534.9,2534.3,0.82775479]
[1746938582501,4.16507381,2534.9,2534.3,0.7883]
[1746938582822,0.46680654,2534.9,2533.5,2.646]
[1746938583113,6.59011551,2534.8,2533.7,0.8037]
[1746938583318,0.22010654,2534.7,2533.9,0.8037]
[1746938583618,0.22010654,2534.7,2534.0,0.8037]
[1746938584319,3.94539572,2534.6,2534.0,0.8037]
[1746938584515,0.22010654,2534.7,2534.0,0.8037]
[1746938584818,8.0,2534.5,2534.0,0.8037]
[1746938585677,3.94556021,2534.5,2534.0,0.8037]
[1746938586415,0.22044138,2534.4,2534.0,0.8037]
[1746938587035,8.0,2534.5,2534.0,0.8037]
[1746938588516,0.22062858,2534.4,2534.0,0.8037]
[1746938589583,11.9453097,2534.7,2534.0,0.8037]
[1746938589784,8.0,2534.8,2534.0,0.8037]
[1746938590120,3.94540929,2534.6,2534.0,0.8037]
[1746938590423,3.94588134,2534.3,2534.0,0.8037]
[1746938590590,3.94576835,2534.4,2534.0,0.8037]
[1746938590796,3.94587991,2534.3,2534.0,0.8037]
[1746938591212,11.94576212,2534.4,2534.0,0.8037]
[1746938591522,4.16658628,2534.3,2534.0,0.8037]
[1746938592122,0.22068424,2534.2,2534.0,0.8037]
[1746938593090,0.29723209,2534.6,2534.0,0.8037]
[1746938593091,0.22068424,2534.5,2534.0,0.8037]
[1746938593907,0.22068424,2534.4,2534.0,0.8037]
[1746938594646,0.22068424,2534.3,2534.1,0.03946022]
[1746938594935,0.22068424,2534.3,2534.2,0.7815]
[1746938595506,0.22068424,2534.9,2534.2,0.7815]
[1746938595697,0.22068424,2534.9,2534.3,0.7815]
[1746938595896,0.22068424,2534.9,2534.4,0.85775493]
[1746938596730,0.22068424,2534.8,2534.4,0.85775493]
[1746938597038,0.2467,2536.3,2534.6,0.7508]
[1746938597207,3.94363428,2535.8,2534.8,0.7508]
[1746938597409,0.11150398,2535.7,2535.0,0.7508]
[1746938597608,8.0,2535.6,2535.0,0.7508]
[1746938597811,0.11084202,2535.5,2535.0,0.7508]
[1746938598151,0.11084202,2535.5,2535.2,0.7508]
[1746938598525,8.0,2535.9,2535.2,0.7508]
[1746938598844,8.0,2536.0,2535.2,0.7508]
[1746938599160,0.11216583,2535.9,2535.4,0.7508]
[1746938599311,0.11216583,2535.9,2535.6,0.7508]
[1746938599658,0.11183492,2535.8,2535.6,0.7508]
[1746938599831,0.29763218,2536.3,2535.7,0.03943522]
[1746938600154,0.11315842,2536.2,2535.8,0.7508]
[1746938600445,12.23497322,2536.5,2535.8,0.7508]
[1746938600647,0.11382002,2536.4,2535.8,0.7508]
[1746938601223,11.9421827,2536.7,2535.8,0.7508]
[1746938601428,0.11448151,2536.6,2535.8,0.7508]
[1746938602048,0.11448151,2536.6,2536.0,0.763]
[1746938603717,0.11448151,2536.6,2536.0,1.19542844]
[1746938603929,3.94164493,2537.1,2536.1,0.763]
[1746938604129,0.09610402,2536.5,2536.1,0.763]
[1746938604343,3.94154452,2537.1,2536.1,0.763]
[1746938604616,3.94154452,2537.1,2536.1,5.286]
[1746938604821,0.09762897,2537.0,2536.2,0.763]
[1746938605145,4.03931435,2537.0,2536.2,0.763]
[1746938605650,0.09762897,2537.0,2536.2,0.763]
[1746938606052,4.03935604,2537.0,2536.2,0.763]
[1746938606252,0.09762897,2537.0,2536.2,0.763]
[1746938606419,0.09762897,2537.0,2536.4,0.763]
[1746938606621,4.18776521,2537.4,2536.4,0.763]
[1746938606622,0.30261886,2537.4,2536.4,0.763]
[1746938607051,0.11267926,2537.3,2536.4,0.763]
[1746938607552,4.05390027,2537.3,2536.4,0.763]
[1746938607957,0.11267926,2537.3,2536.4,0.763]
[1746938608721,0.11267926,2537.3,2536.5,0.03941407]
[1746938609037,3.94037204,2537.9,2536.5,0.80241407]
[1746938609254,2.642,2538.0,2536.5,0.80241407]
[1746938609255,4.05476886,2537.8,2536.5,0.80241407]
[1746938609547,0.11433162,2537.8,2536.6,1.313]
[1746938609722,0.11433162,2537.8,2536.8,0.763]
[1746938609926,0.11433162,2537.8,2537.0,1.313]
[1746938610256,8.0,2538.4,2537.3,0.763]
[1746938610458,3.93990302,2538.2,2537.4,0.763]
[1746938610622,0.11532272,2538.1,2537.4,0.763]
[1746938610985,2.643,2538.5,2537.6,0.763]
[1746938611127,3.93964627,2538.3,2537.6,0.763]
[1746938611453,0.11565304,2538.2,2537.6,0.763]
[1746938612160,3.94006116,2538.1,2537.6,0.763]
[1746938612543,4.05513553,2538.0,2537.6,0.763]
[1746938613660,0.11499238,2538.0,2537.6,0.763]
[1746938613861,3.93995099,2538.2,2537.6,0.763]
[1746938614044,4.05528288,2538.1,2537.6,0.763]
[1746938614369,0.11532272,2538.1,2537.6,0.763]
[1746938614972,3.94001156,2538.1,2537.6,0.763]
[1746938615175,3.94013569,2538.0,2537.6,0.763]
[1746938615380,4.05516557,2538.0,2537.6,0.763]
[1746938616176,0.11499238,2538.0,2537.6,0.763]
[1746938616672,3.93985912,2538.2,2537.6,0.763]
[1746938616870,0.11532272,2538.1,2537.6,0.763]
[1746938617037,3.93960567,2538.4,2537.6,0.763]
[1746938617239,4.05565812,2538.3,2537.7,0.8193]
[1746938618760,3.93981476,2538.2,2537.7,0.8193]
[1746938619271,0.11532272,2538.1,2537.7,0.8193]
[1746938619839,4.05530165,2538.1,2537.7,0.8193]
[1746938620077,0.11532272,2538.1,2537.7,0.8193]
[1746938622258,3.93970324,2538.3,2537.7,0.8193]
[1746938622457,0.0975844,2538.2,2537.7,0.8193]
[1746938623574,4.03744559,2538.2,2537.7,0.8193]
[1746938624897,0.0975844,2538.2,2537.9,0.7732]
[1746938625098,0.0975844,2538.2,2538.1,0.7732]
[1746938625297,6.57813893,2538.7,2538.1,0.7732]
[1746938625477,0.09762119,2538.2,2538.1,0.7732]
[1746938625663,0.2467,2539.0,2538.1,0.7732]
[1746938625664,3.93865845,2539.0,2538.1,0.7732]
[1746938625873,3.93889831,2538.8,2538.3,0.7732]
[1746938626091,0.08245179,2538.7,2538.3,0.81259158]
[1746938626489,3.93844624,2539.1,2538.3,0.81259158]
[1746938626663,0.08223166,2538.6,2538.3,0.81259158]
[1746938626858,3.93830627,2539.2,2538.3,0.81259158]
[1746938627064,0.08386856,2539.1,2538.3,0.7732]
[1746938627264,3.93851291,2539.1,2538.5,0.7612]
[1746938627501,0.0836485,2539.0,2538.5,0.7612]
[1746938629113,4.02220776,2539.0,2538.5,0.7612]
[1746938630116,0.0836485,2539.0,2538.5,0.7612]
[1746938630302,0.0836485,2539.0,2537.7,8.0]
[1746938630303,0.3303485,2539.0,2537.7,8.0]
[1746938630506,3.93871361,2538.9,2537.9,0.7612]
[1746938630716,3.93919277,2538.6,2537.9,0.7612]
[1746938631084,0.08331407,2538.5,2537.9,0.7612]
[1746938631386,4.02269136,2538.5,2537.9,0.7612]
[1746938631717,0.08331407,2538.5,2537.9,0.7612]
[1746938631926,0.08331407,2538.5,2538.0,0.99938483]
[1746938632082,4.02267596,2538.5,2538.1,0.7511]
[1746938632412,3.93979985,2538.2,2538.1,0.7511]
[1746938632613,4.0230362,2538.2,2538.1,0.7511]
[1746938632817,4.0230362,2538.2,2537.4,5.277]
[1746938632818,3.94013446,2538.0,2537.6,0.7511]
[1746938633119,0.08257566,2537.9,2537.6,0.7511]
[1746938633307,0.08257566,2537.9,2537.6,1.09011]
[1746938633614,0.0823554,2537.8,2537.6,1.09011]
[1746938633836,3.94015992,2538.0,2537.6,0.7511]
[1746938633984,3.94057611,2537.7,2537.3,0.7511]
[1746938634309,0.08087253,2537.6,2537.3,0.7511]
[1746938634702,3.94008071,2538.1,2537.3,0.7511]
[1746938635032,3.94023855,2538.0,2537.3,0.7511]
[1746938635220,0.08153337,2537.9,2537.3,0.7511]
[1746938635418,2.638,2538.3,2537.4,0.03940691]
[1746938635622,0.08219405,2538.2,2537.4,0.03940691]
[1746938636424,0.22027836,2538.1,2537.4,0.03940691]
[1746938636589,0.08161562,2538.0,2537.3,0.7511]
[1746938636795,3.94026557,2537.9,2537.3,0.7511]
[1746938637127,0.08117512,2537.8,2537.3,0.7511]
[1746938637293,0.22027836,2537.7,2537.3,0.7511]
[1746938637485,0.08073454,2537.6,2537.3,0.7511]
[1746938638508,3.94057611,2537.7,2537.3,0.7511]
[1746938638703,0.08051423,2537.5,2537.3,0.7511]
[1746938638910,3.9406225,2537.7,2537.3,0.7511]
[1746938639148,0.08029389,2537.4,2537.3,0.7511]
[1746938639296,4.23365072,2537.8,2537.3,0.7511]
[1746938639495,0.08029389,2537.4,2537.3,0.7511]
[1746938639710,0.22052335,2537.7,2537.3,0.7511]
[1746938639911,0.08029389,2537.4,2537.3,0.7511]
[1746938640432,3.94000832,2538.1,2537.3,0.7511]
[1746938640604,0.09764434,2538.0,2537.3,0.7511]
[1746938641011,0.22058215,2537.9,2537.3,0.7511]
[1746938641208,0.22058215,2537.9,2537.5,0.8014]
[1746938641534,0.22058215,2537.9,2537.7,0.8214]
[1746938641736,0.22058215,2537.9,2537.8,0.86079642]
[1746938642055,3.93897745,2538.8,2537.8,0.86079642]
[1746938642237,0.08291151,2538.7,2538.0,8.8214]
[1746938642439,0.08291151,2538.7,2538.0,10.23517964]
[1746938642440,4.02205206,2538.7,2538.0,10.23517964]
[1746938642614,0.22056985,2538.6,2538.0,10.23517964]
[1746938642810,0.08247125,2538.5,2538.0,2.23517964]
[1746938643014,0.08247125,2538.5,2538.1,0.0393956]
[1746938643422,6.57785448,2538.9,2538.2,0.8214]
[1746938643748,0.08313162,2538.8,2538.2,1.04885752]
[1746938644307,0.22054707,2538.7,2538.2,1.04885752]
[1746938644745,0.08269139,2538.6,2538.2,1.04885752]
[1746938645104,0.22054707,2538.5,2538.2,1.04885752]
[1746938645640,0.08225109,2538.4,2537.9,0.8214]
[1746938646042,0.08225109,2538.4,2538.1,0.8214]
[1746938646227,0.08225109,2538.4,2538.2,0.03939465]
[1746938646550,3.93861577,2539.0,2538.1,0.8214]
[1746938646847,0.08482324,2538.9,2538.1,0.8214]
[1746938647096,0.08482324,2538.9,2538.2,0.03939001]
[1746938647353,6.8708277,2539.1,2538.3,0.8317]
[1746938647562,0.3051038,2538.8,2538.4,0.03939001]
[1746938647872,0.08438304,2538.7,2538.4,0.03939001]
[1746938648211,0.22050065,2538.8,2538.3,0.8317]
[1746938648406,0.29338256,2539.1,2538.3,0.8317]
[1746938648636,0.33174331,2539.0,2537.6,0.88408066]
[1746938648844,3.93932698,2538.6,2538.0,0.8317]
[1746938649158,4.24398723,2538.5,2538.0,0.8317]
[1746938649311,0.30458279,2538.5,2538.0,0.8317]
[1746938649512,0.30458279,2538.5,2538.1,0.03939558]
[1746938649713,0.22044081,2538.5,2538.1,0.03939558]
[1746938649962,0.08392182,2538.4,2538.0,0.8317]
[1746938650306,0.2467,2539.0,2538.0,0.8317]
[1746938650514,0.08471597,2538.9,2538.0,0.8317]
[1746938650871,3.93912913,2538.7,2538.0,0.8317]
[1746938651182,0.08394838,2538.6,2538.1,0.03939558]
[1746938651473,0.22046251,2538.8,2538.1,0.03939558]
[1746938651633,0.30463101,2538.7,2538.2,0.7925]
[1746938652569,0.22046251,2538.6,2538.2,0.7925]
[1746938652967,0.08375889,2538.5,2538.2,0.7925]
[1746938653540,3.93900258,2538.8,2537.9,0.7925]
[1746938653751,0.08353873,2538.4,2538.0,0.03939558]
[1746938654069,0.08331855,2538.3,2538.1,0.7925]
[1746938654271,3.93900258,2538.8,2538.2,0.03939363]
[1746938654437,0.08419915,2538.7,2538.2,0.03939363]
[1746938654838,3.93922275,2538.6,2538.1,0.7925]
[1746938655046,0.30424663,2538.5,2538.1,0.7925]
[1746938656074,0.08375889,2538.5,2538.2,0.03939547]
[1746938656280,0.542767,2539.0,2538.2,0.03939547]
[1746938656575,4.48134523,2539.0,2538.1,0.7925]
[1746938656738,3.93898003,2538.8,2538.1,0.7925]
[1746938656935,3.94011032,2538.0,2537.9,0.7925]
[1746938657138,3.94005708,2538.1,2537.6,0.7925]
[1746938657442,0.08252007,2538.0,2537.6,0.7925]
[1746938657679,3.94005708,2538.1,2537.6,0.7925]
[1746938657988,2.637,2538.6,2537.6,0.7925]
[1746938658269,3.9404183,2537.9,2537.3,0.7925]
[1746938658481,0.0809912,2537.8,2537.3,0.7925]
[1746938661246,4.02142365,2537.8,2537.1,0.7925]
[1746938661451,4.02142365,2537.8,2537.2,0.88319093]
[1746938661651,0.0809912,2537.8,2537.2,0.9226002]
[1746938661847,3.94011818,2538.0,2537.2,0.9226002]
[1746938662052,0.08121146,2537.9,2537.2,0.9226002]
[1746938662474,0.08121146,2537.9,2537.3,0.7572]
[1746938662648,8.0,2538.5,2537.4,0.7572]
[1746938662846,0.08209784,2538.4,2537.4,0.7572]
[1746938663286,0.08209784,2538.4,2537.5,0.0393998]
[1746938663462,0.22051674,2538.3,2537.6,8.7572]
[1746938663663,0.08165747,2538.2,2537.7,1.18275978]
[1746938664171,0.08165747,2538.2,2537.8,0.7572]
[1746938664573,6.576353,2538.5,2537.8,0.7572]
[1746938664763,0.08143726,2538.1,2537.8,0.7572]
[1746938665083,0.08121703,2538.0,2537.8,0.7572]
[1746938665282,2.637,2538.5,2537.7,0.0393998]
[1746938665486,4.18712083,2537.8,2536.7,0.7572]
[1746938665654,0.0813535,2537.7,2536.7,8.7572]
[1746938665849,4.18712083,2537.8,2536.8,0.7572]
[1746938666048,0.08132284,2537.7,2536.9,0.87572]
[1746938666552,0.08132284,2537.7,2537.0,0.03940833]
[1746938666782,0.08132284,2537.7,2537.1,0.796]
[1746938666965,0.2467,2537.9,2537.2,0.03940834]
[1746938667166,0.08110255,2537.6,2537.2,0.03940834]
[1746938667381,4.18699033,2537.9,2537.2,0.03940834]
[1746938667883,0.08154312,2537.8,2537.2,0.03940834]
[1746938668454,4.02197918,2537.8,2537.1,0.796]
[1746938669605,0.08154312,2537.8,2537.1,0.796]
[1746938670857,4.02207153,2537.8,2537.1,0.796]
[1746938671058,0.08154312,2537.8,2537.2,0.03940846]
[1746938671258,3.94032599,2537.9,2537.2,0.03940846]
[1746938671597,0.09625125,2537.8,2537.2,0.03940846]
[1746938672395,0.09625125,2537.8,2537.1,0.796]
[1746938672569,6.82376767,2538.1,2537.1,0.796]
[1746938672769,0.09598691,2537.7,2537.1,0.796]
[1746938672971,0.22053268,2538.0,2537.1,0.796]
[1746938673193,0.09572256,2537.6,2537.1,0.796]
[1746938673420,0.22053268,2538.0,2537.2,8.0]
[1746938673699,3.94006988,2538.1,2537.3,1.8143]
[1746938673889,0.09589674,2538.0,2537.3,1.8143]
[1746938674899,4.16080017,2537.9,2537.3,1.8143]
[1746938675098,0.09549694,2537.8,2537.3,0.7506]
[1746938675904,3.94022781,2538.0,2537.3,0.7506]
[1746938676104,0.09576126,2537.9,2537.3,0.7506]
[1746938681896,0.22077621,2537.8,2537.3,0.7506]
[1746938682205,0.09554541,2537.7,2537.3,0.7506]
[1746938682709,0.09528105,2537.6,2537.3,0.7506]
[1746938682916,3.94028229,2537.9,2537.3,0.7506]
[1746938683119,0.09579134,2537.8,2537.3,0.7506]
[1746938683429,0.09579134,2537.8,2537.5,0.7506]
[1746938683572,3.99549543,2538.5,2537.7,8.0]
[1746938683771,3.93960276,2538.4,2537.8,2.0779]
[1746938684088,3.93969563,2538.3,2537.8,2.0779]
[1746938684278,4.16057528,2538.3,2537.8,2.0779]
[1746938684470,0.22087965,2538.3,2537.8,2.0779]
[1746938684874,0.22087965,2538.2,2537.8,2.0779]
[1746938685075,0.22087965,2538.2,2537.9,1.00779]
[1746938685613,0.22087965,2538.2,2537.9,1.04718983]
[1746938685779,0.22087965,2538.2,2537.9,1.00779]
[1746938686476,0.22087965,2538.2,2537.9,1.04718767]
[1746938686682,0.22087965,2538.4,2537.9,1.04718767]
[1746938686884,0.33130264,2538.4,2538.0,0.31250877]
[1746938687917,0.22087965,2538.3,2538.0,0.31250877]
[1746938688122,0.22087965,2538.3,2538.1,0.805]
[1746938688416,0.22087965,2538.4,2538.1,0.805]
[1746938688827,0.33130264,2538.4,2538.1,0.805]
[1746938689395,0.22087965,2538.3,2538.1,0.805]
[1746938691735,0.22087965,2538.3,2537.8,2.0819]
[1746938691888,3.94024385,2538.0,2537.1,5.271]
[1746938692088,3.94000463,2538.1,2537.2,9.2817]
[1746938692398,0.22087965,2538.0,2537.2,9.2817]
[1746938692598,0.22087965,2538.0,2537.3,0.79400374]
[1746938693327,4.16085899,2538.1,2537.3,0.79400374]
[1746938693627,4.16085899,2538.1,2537.3,0.79400375]
[1746938693832,4.16085899,2538.1,2537.4,0.93211038]
[1746938693985,4.16085899,2538.1,2537.5,0.03940376]
[1746938694185,0.22087965,2538.0,2537.5,0.03940376]
[1746938696086,0.22087965,2538.0,2537.4,0.93211038]
[1746938696087,4.16108996,2538.0,2537.4,0.93211038]
[1746938696708,4.16108996,2538.0,2537.3,0.7546]
[1746938696913,0.22087965,2537.9,2537.3,0.7546]
[1746938697320,0.22087965,2537.8,2537.3,0.7546]
[1746938698003,0.22087965,2537.9,2537.3,0.7546]
[1746938698939,0.22087965,2537.8,2537.3,0.7546]
[1746938699139,0.22087965,2537.8,2537.4,0.87546]
[1746938699295,4.16145,2537.8,2537.3,0.7546]
[1746938699654,4.16145,2537.8,2537.1,2.636]